Workbook

Sheet เริ่มต้น
B1: เกี่ยวกับเทมเพลตนี้
B2: ติดตามการลงทุนระยะแรกในเว็บไซต์ ผลกำไร และต้นทุนโดยใช้เครื่องมือจัดงบประมาณเว็บไซต์นี้
B3: ใส่รายละเอียดในตารางเพื่อคำนวณผลรวมและเมตริกการประเมินโดยอัตโนมัติ
B4: หมายเหตุ:
B5: คำแนะนำเพิ่มเติมจะอยู่ในคอลัมน์ A ในเวิร์กชีตเครื่องมืองบประมาณ ข้อความนี้ได้ถูกซ่อนไว้โดยตั้งใจ เมื่อต้องการเอาข้อความออก ให้เลือกคอลัมน์ A แล้วเลือก ลบ เมื่อต้องการยกเลิกการซ่อนข้อความ ให้เลือกคอลัมน์ A แล้วเปลี่ยนสีฟอนต์
B6: เมื่อต้องการเรียนรู้เพิ่มเติมเกี่ยวกับตารางในเวิร์กชีต ให้กด SHIFT แล้วตามด้วย F10 ภายในตาราง เลือกตัวเลือก ตาราง จากนั้น เลือก ข้อความแสดงแทน

Sheet เครื่องมืองบประมาณ
B2: ฮาร์ดแวร์ Quadrex
B3: เครื่องมือจัดทํางบประมาณเว็บไซต์
B4: 2022-12-01
B6: ชื่อบริษัท | C6: อัตรา
B7: อัตราผลตอบแทนที่ต้องการ | C7: 10%
B8: อัตราภาษี | C8: 30%
B10: การลงทุนระยะแรกในเว็บไซต์ | C10: ปี
B11: ฮาร์ดแวร์ (เช่น เซิร์ฟเวอร์) | C11: ฿25,000.00
B12: ซอฟต์แวร์ (เช่น ซอฟต์แวร์แค็ตตาล็อกอีคอมเมิร์ซ) | C12: ฿15,000.00
B13: การพัฒนา (เช่น การออกแบบและการพัฒนาไซต์ของบริษัทอื่น) | C13: ฿150,000.00
B14: ผลรวมการลงทุนระยะแรก | C14: =SUBTOTAL(109,การลงทุนระยะแรก[ปี]) -> ฿190,000.00
B16: ผลกำไรจากเว็บไซต์ | C16: ปี 1 | D16: ปี 2 | E16: ปี 3
B17: การขายตรง | C17: ฿15,000.00 | D17: ฿50,000.00 | E17: ฿75,000.00
B18: ยอดขายที่เพิ่มขึ้นจากประสิทธิภาพของโปรโมชันและพนักงานขายที่ได้รับการปรับปรุง | C18: ฿25,000.00 | D18: ฿25,000.00 | E18: ฿25,000.00
B19: ยอดขายที่เพิ่มขึ้นจากการมีส่วนร่วมของคู่ค้าที่เพิ่มขึ้น | C19: ฿25,000.00 | D19: ฿25,000.00 | E19: ฿25,000.00
B20: ต้นทุนการเดินทางที่ลดลง | C20: ฿25,000.00 | D20: ฿25,000.00 | E20: ฿25,000.00
B21: ต้นทุนการให้บริการลูกค้าที่ลดลง | C21: ฿50,000.00 | D21: ฿50,000.00 | E21: ฿50,000.00
B22: ผลรวมผลกำไร | C22: =SUBTOTAL(109,ผลประโยชน์[ปี 1]) -> ฿140,000.00 | D22: =SUBTOTAL(109,ผลประโยชน์[ปี 2]) -> ฿175,000.00 | E22: =SUBTOTAL(109,ผลประโยชน์[ปี 3]) -> ฿200,000.00
B24: ต้นทุน (ยกเว้น ทุนเริ่มต้น) | C24: ปี 1 | D24: ปี 2 | E24: ปี 3
B25: ต้นทุนการขาย | C25: ฿7,500.00 | D25: ฿25,000.00 | E25: ฿37,500.00
B26: การบำรุงรักษา | C26: ฿15,000.00 | D26: ฿15,000.00 | E26: ฿15,000.00
B27: การจัดการโครงการ การให้ความช่วยเหลือลูกค้า | C27: ฿35,000.00 | D27: ฿35,000.00 | E27: ฿35,000.00
B28: การโฆษณาออนไลน์ การลงทะเบียนโปรแกรมค้นหา | C28: ฿10,000.00 | D28: ฿10,000.00 | E28: ฿10,000.00
B29: ค่าเสื่อมราคาของรายจ่ายลงทุน (การคำนวณใช้ระยะเวลา 3 ปี) | C29: =การลงทุนระยะแรก[[#Totals],[ปี]]/3 -> ฿63,333.33 | D29: =การลงทุนระยะแรก[[#Totals],[ปี]]/3 -> ฿63,333.33 | E29: =การลงทุนระยะแรก[[#Totals],[ปี]]/3 -> ฿63,333.33
B30: ค่าใช้จ่ายทั้งหมด | C30: =SUBTOTAL(109,ค่าใช้จ่าย[ปี 1]) -> ฿130,833.33 | D30: =SUBTOTAL(109,ค่าใช้จ่าย[ปี 2]) -> ฿148,333.33 | E30: =SUBTOTAL(109,ค่าใช้จ่าย[ปี 3]) -> ฿160,833.33
B32: ผลรวม | D32: ปี 1 | E32: ปี 2 | F32: ปี 3
B33: ผลกำไรสุทธิ (ต้นทุน) | D33: =ผลประโยชน์[[#Totals],[ปี 1]]-ค่าใช้จ่าย[[#Totals],[ปี 1]] -> ฿9,166.67 | E33: =ผลประโยชน์[[#Totals],[ปี 2]]-ค่าใช้จ่าย[[#Totals],[ปี 2]] -> ฿26,666.67 | F33: =ผลประโยชน์[[#Totals],[ปี 3]]-ค่าใช้จ่าย[[#Totals],[ปี 3]] -> ฿39,166.67
B34: ภาษี | D34: =D33*อัตราภาษี -> ฿2,750.00 | E34: =E33*อัตราภาษี -> ฿8,000.00 | F34: =F33*อัตราภาษี -> ฿11,750.00
B35: มูลค่าหลังหักภาษี | D35: =D33-D34 -> ฿6,416.67 | E35: =E33-E34 -> ฿18,666.67 | F35: =F33-F34 -> ฿27,416.67
B36: ค่าเสื่อมราคาที่เพิ่มกลับ | D36: =C29 -> ฿63,333.33 | E36: =D29 -> ฿63,333.33 | F36: =E29 -> ฿63,333.33
B37: กระแสเงินสด | C37: =-การลงทุนระยะแรก[[#Totals],[ปี]] -> -฿190,000.00 | D37: =D35+D36 -> ฿69,750.00 | E37: ฿82,000.00 | F37: ฿90,750.00
B38: กระแสเงินสดสะสม | C38: =C37 -> -฿190,000.00 | D38: =C38+D37 -> -฿120,250.00 | E38: -฿38,250.00 | F38: ฿52,500.00
B40: เมตริกการประเมิน | C40: มูลค่า
B41: มูลค่าปัจจุบันสุทธิ (NPV) | C41: =C37+(NPV(ROR,D37:F37)) -> ฿9,359.50
B42: ผลตอบแทนภายใน (IRR) | C42: =IRR(C37:F37) -> 12.66%
B43: ระยะเวลาคืนทุน (ปี) | C43: =IF(F38<=0,"เกิน 3 ปี",IF(E38<=0,(F37-F38)/F37+2,IF(D38<=0,(E37-E38)/E37+1,IF(C38<=0,(D37-D38)/D37,"ไม่มีข้อมูล")))) -> 2.42
